Workbook

Sheet Apresentação
A1: ARSAE-MG
A2: Cálculo do Fator de Produtividade - Nota Técnica CRE 11/2020
A3: Data: 24/11/2020
A5: Nesta planilha foram realizados os cálculos do Fator de Produtividade
A6: Todos os valores estão a preços de dez/2012
A8: Aba "Resumo" | I8: Aba "Resumo NT"
A9: Foram realizados os cálculos para os Períodos de Referência entre 2017 e 2020, sobre: | I9: Esta aba serviu como base das imagens que foram para a NT
A11: O que: | D11: Fórmula utilizada: | I11: Aba "Custos"
A12: Variação do Produto | D12: Variação do Mercado de água * Peso água + | I12: Nesta aba constam as somas anuais dos
D13: Variação do Mercado de EDT * Peso EDT + | I13: Custos no período de Agosto a Julho
D14: Variação do Mercado EDC * Peso EDC | I14: a preços de dezembro de 2012.
A15: Variação do Mercado de Água | D15: LN do Mercado de Água posterior -
D16: LN do Mercado de Água do período inicial
A17: Variação do Mercado de EDT | D17: LN do Mercado de EDT posterior - | I17: Aba "Mercado"
D18: LN do Mercado de EDT do período inicial | I18: Apresenta volume faturados e economias
A19: Variação do Mercado de EDC | D19: LN do Mercado de EDC posterior - | I19: de água, EDC e EDT.
D20: LN do Mercado de EDC do período inicial
A21: Variação dos Custos Totais | D21: LN do Custo Total posterior -
D22: LN do Custo Toral do período inicial
A23: Índice de Tornqvist | D23: 1 + Variação dos Custos Totais -
D24: Variação do Produto
A25: EDC = esgoto dinâmico coletado
A26: EDT = esgoto dinâmico coletado e tratado
A27: Obs. 1: o "mercado EDC" considera a soma EDC + EDT, pois todo esgoto tratado também foi coletado.
A28: Obs. 2: o "peso EDT" se refere aos custos da etapa de tratamento de esgoto apenas, ou seja, não inclui os custos da coleta do esgoto que é tratado, os quais estão no "peso EDC".

Sheet Resumo
A1: ARSAE-MG
A2: Cálculo do Fator de Produtividade - Nota Técnica CRE 11/2020
A3: Resumo dos resultados
K4: O cálculo dos pesos foi demonstrado na planilha "Criterios_calculo_custos_por_servico"
B6: Empresa | C6: Período | D6: Custos Operacionais | E6: Custo de Capital | F6: Custo Total | G6: Mercado água | H6: Mercado EDC | I6: Mercado EDT | J6: Economias | K6: Peso água | L6: Peso EDC (coleta de esgoto) | M6: Peso EDT (tratamento de esgoto)
B7: Copasa | C7: PR2016/17 | D7: =Custos!H25+Custos!H29+Custos!H30+Custos!H36-Custos!H38 -> 1824535013 | E7: =Custos!H35 -> 1402809519 | F7: =D7+E7 -> 3227344532 | G7: =Mercado!M8 -> 583350158.2 | H7: =Mercado!Q8 -> 396745374.4 | I7: =Mercado!O8 -> 297516322.4 | J7: =Mercado!L8 -> 59892175 | K7: 0.474609375 | L7: 0.3232421875 | M7: 0.2021484375
B8: Copasa | C8: PR2017/18 | D8: =Custos!I25+Custos!I29+Custos!I30+Custos!I36-Custos!I38 -> 1982622242 | E8: =Custos!I35 -> 1437578348 | F8: =D8+E8 -> 3420200590 | G8: =Mercado!M9 -> 584698102.8 | H8: =Mercado!Q9 -> 399599019 | I8: =Mercado!O9 -> 298193049 | J8: =Mercado!L9 -> 60852188 | K8: 0.474609375 | L8: 0.3232421875 | M8: 0.2021484375
B9: Copasa | C9: PR2018/19 | D9: =Custos!J25+Custos!J29+Custos!J30+Custos!J36-Custos!J38 -> 2042795819 | E9: =Custos!J35 -> 1406938425 | F9: =D9+E9 -> 3449734244 | G9: =Mercado!M10 -> 584065299.7 | H9: =Mercado!Q10 -> 405969533.1 | I9: =Mercado!O10 -> 306649540.7 | J9: =Mercado!L10 -> 61634188 | K9: 0.474609375 | L9: 0.3232421875 | M9: 0.2021484375
B10: Copasa | C10: PR2019/20 | D10: =Custos!K25+Custos!K29+Custos!K30+Custos!K36-Custos!K38 -> 2073938469 | E10: =Custos!K35 -> 1358838649 | F10: =D10+E10 -> 3432777117 | G10: =Mercado!M11 -> 597119215.4 | H10: =Mercado!Q11 -> 416496145.1 | I10: =Mercado!O11 -> 326106625.6 | J10: =Mercado!L11 -> 62559724.67 | K10: 0.474609375 | L10: 0.3232421875 | M10: 0.2021484375
B11: Obs. 1: o "mercado EDC" considera a soma EDC + EDT, pois todo esgoto tratado também foi coletado.
B12: Obs. 2: o "peso EDT" se refere aos custos da etapa de tratamento de esgoto apenas, ou seja, não inclui os custos da coleta do esgoto que é tratado, os quais estão no "peso EDC".
B16: Variação do Produto | F16: Variação do Mercado Água | J16: Variação do Mercado EDT | N16: Variação do Mercado EDC
B17: PR2017/PR2018 | C17: PR2018/PR2019 | D17: PR2019/PR2020 | F17: PR2017/PR2018 | G17: PR2018/PR2019 | H17: PR2019/PR2020 | J17: PR2017/PR2018 | K17: PR2018/PR2019 | L17: PR2019/PR2020 | N17: PR2017/PR2018 | O17: PR2018/PR2019 | P17: PR2019/PR2020
B18: =F18*K7+J18*M7+N18*L7 -> 0.00387133619 | C18: =G18*K7+K18*M7+O18*L7 -> 0.01025160061 | D18: =H18*K7+L18*M7+P18*L7 -> 0.03120141124 | F18: =LN(G8)-LN(G7) -> 0.002308030007 | G18: =LN(G9) - LN(G8) -> -0.001082859389 | H18: =LN(G10) - LN(G9) -> 0.02210399312 | J18: =LN(I8)-LN(I7) -> 0.002272003274 | K18: =LN(I9) - LN(I8) -> 0.02796444208 | L18: =LN(I10)-LN(I9) -> 0.06151886622 | N18: =LN(H8)-LN(H7) -> 0.00716689123 | O18: =LN(H9) - LN(H8) -> 0.0158165232 | P18: =LN(H10)-LN(H9) -> 0.02559909106
B22: Variação dos Custos Totais
B23: PR2017/PR2018 | C23: PR2018/PR2019 | D23: PR2019/PR2020
B24: =LN(F8)-LN(F7) -> 0.05803952862 | C24: =LN(F9)-LN(F8) -> 0.008597995888 | D24: =LN(F10)-LN(F9) -> -0.004927608527
B28: Índice de Tornqvist
B29: PR2017/PR2018 | C29: PR2018/PR2019 | D29: PR2019/PR2020 | E29: Média Geométrica
B30: =1-B24+B18 -> 0.9458318076 | C30: =1-C24+C18 -> 1.001653605 | D30: =1-D24+D18 -> 1.03612902 | E30: =GEOMEAN(B30:D30)-1 -> -0.006163131989

Sheet Resumo NT
A1: ARSAE-MG
A2: Cálculo do Fator de Produtividade - Nota Técnica CRE 11/2020
A3: Tabela apresentada na nota técnica
B5: Tabela 4 - Evolução Histórica dos Custos e Mercado do Setor de Abastecimento de Água, Coleta e Tratamento de Esgoto
C6: PR 17/18 | D6: PR 18/19 | E6: PR 19/20 | F6: Média Geométrica
B7: Mercado Água | C7: =Resumo!F18 -> 0.002308030007 | D7: =Resumo!G18 -> -0.001082859389 | E7: =Resumo!H18 -> 0.02210399312 | F7: =F29 -> 0.007724738231
B8: Mercado EDC | C8: =Resumo!N18 -> 0.00716689123 | D8: =Resumo!O18 -> 0.0158165232 | E8: =Resumo!P18 -> 0.02559909106 | F8: 0.01616628201
B9: Mercado EDT | C9: =Resumo!J18 -> 0.002272003274 | D9: =Resumo!K18 -> 0.02796444208 | E9: =Resumo!L18 -> 0.06151886622 | F9: 0.03030024468
B10: Mercado Total | C10: =Resumo!B18 -> 0.00387133619 | D10: =Resumo!C18 -> 0.01025160061 | E10: =Resumo!D18 -> 0.03120141124 | F10: 0.01504126901
B11: Custos Operacionais* | C11: =LN(Resumo!D8)-LN(Resumo!D7) -> 0.08309516582 | D11: =LN(Resumo!D9)-LN(Resumo!D8) -> 0.02989903606 | E11: =LN(Resumo!D10)-LN(Resumo!D9) -> 0.01513007208 | F11: 0.0423037994
B12: Custos de Capital** | C12: =LN(Resumo!E8)-LN(Resumo!E7) -> 0.02448297042 | D12: =LN(Resumo!E9)-LN(Resumo!E8) -> -0.02154398165 | E12: =LN(Resumo!E10)-LN(Resumo!E9) -> -0.03478561325 | F12: -0.01093853925
B13: Custos Totais | C13: =Resumo!B24 -> 0.05803952862 | D13: =Resumo!C24 -> 0.008597995888 | E13: =Resumo!D24 -> -0.004927608527 | F13: 0.02021465333
B14: Índice de Tornqvist | C14: =C10-C13 -> -0.05416819243 | D14: =D10-D13 -> 0.001653604722 | E14: =E10-E13 -> 0.03612901976 | F14: -0.006163131989
C17: Índice de Tornqvist
C18: PR2017/PR2018 | D18: PR2018/PR2019 | E18: PR2019/PR2020 | F18: Média Geométrica
C19: =C14 -> -0.05416819243 | D19: =D14 -> 0.001653604722 | E19: =E14 -> 0.03612901976 | F19: =GEOMEAN(C20:E20)-1 -> -0.006163131989
C20: =C19+1 -> 0.9458318076 | D20: =D19+1 -> 1.001653605 | E20: 1.03612902
C28: 17/18 | D28: 18/19 | E28: 19/20 | F28: Média
B29: Mercado Água | C29: =1+C7 -> 1.00230803 | D29: 0.9989171406 | E29: 1.022103993 | F29: =GEOMEAN(C29:E29)-1 -> 0.007724738231
B30: Mercado EDC | C30: 1.007166891 | D30: 1.015816523 | E30: 1.025599091 | F30: =GEOMEAN(C30:E30)-1 -> 0.01616628201
B31: Mercado EDT | C31: 1.002272003 | D31: 1.027964442 | E31: 1.061518866 | F31: 0.03030024468
B32: Mercado Total | C32: 1.003871336 | D32: 1.010251601 | E32: 1.031201411 | F32: 0.01504126901
B33: Custos Operacionais* | C33: 1.083095166 | D33: 1.029899036 | E33: 1.015130072 | F33: 0.0423037994
B34: Custos de Capital** | C34: =1+C12 -> 1.02448297 | D34: =1+D12 -> 0.9784560184 | E34: 0.9652143867 | F34: -0.01093853925
B35: Custos Totais | C35: =1+C13 -> 1.058039529 | D35: =1+D13 -> 1.008597996 | E35: =1+E13 -> 0.9950723915 | F35: 0.02021465333
B36: Mercado - Custos | C36: =1+C14 -> 0.9458318076 | D36: =1+D14 -> 1.001653605 | E36: =1+E14 -> 1.03612902 | F36: =GEOMEAN(C36:E36)-1 -> -0.006163131989

Sheet Custos
A1: ARSAE-MG
A2: Cálculo do Fator de Produtividade - Nota Técnica CRE 11/2020
A3: Cálculo dos custos
D6: Classificação regulatória | H6: Período de Referência | L6: Critério/método de cálculo que será utilizado | M6: Simplificação adotada no cálculo prévio apresentado na NT 11, que foi utilizado apenas para ilustrar a aplicação da metodologia do FP
E7: Grupo | G7: Subgrupo | H7: ago16-jul17 | I7: ago17-jul18 | J7: ago18-jul19 | K7: ago19-jul20
E8: Custos Operacionais (1) | G8: Aluguel
G9: Atendimento Telefônico
G10: Autosserviços de Água e Esgoto
G11: Combustíveis e Lubrificantes
G12: Comercialização
G13: Comunicação, Publicidade e Propaganda Legal
G14: Convênios
G15: Energia Elétrica
G16: Indenizações
G17: Manutenção
G18: Material de Tratamento
G19: Outros Materiais
G20: Pessoal
G21: Serviços de Terceiros
G22: Telecomunicação
G23: Treinamento
G24: Outros Custos Operacionais
G25: Total de Custos Operacionais | H25: 1602438220 | I25: 1706419534 | J25: 1761961849 | K25: 1759061989 | L25: Valores da contabilidade conforme nova classificação regulatória | M25: Valores da contabilidade conforme classificação regulatória RTP 2017
E26: Tributos e Outras Obrigações (2) | G26: PIS/Pasep e Cofins | H26: =6.48%*H40 -> 209131925.7 | I26: =6.97%*I40 -> 238387981.1 | J26: =6.97%*J40 -> 240446476.8 | K26: =8.26%*K40 -> 283547389.9 | L26: Percentual efetivo (líquido) verificado na contabilidade em cada PR * RT calculada aqui
G27: TFAS | H27: 23332307.76 | I27: 24058762.48 | J27: 24832772.86 | K27: 26196805.82 | L27: Valores da contabilidade conforme nova classificação regulatória | M27: Valores da contabilidade conforme classificação regulatória RTP 2017
G28: Outros Tributos e Taxas | H28: 5862096.317 | I28: 6442089.479 | J28: 4995385.188 | K28: 4756171.942 | L28: Valores da contabilidade conforme nova classificação regulatória | M28: Valores da contabilidade conforme classificação regulatória RTP 2017
G29: Total de Tributos e Outras Obrigações | H29: =SUM(H26:H28) -> 238326329.8 | I29: =SUM(I26:I28) -> 268888833.1 | J29: =SUM(J26:J28) -> 270274634.9 | K29: =SUM(K26:K28) -> 314500367.7
C30: 0.005 | E30: Programas Especiais (3) | G30: Proteção de Mananciais | H30: =$C$30*H40 -> 16136722.66 | I30: =$C$30*I40 -> 17101002.95 | J30: 17248671.22 | K30: 17163885.59 | L30: 0,5% * RT calculada aqui
E31: Custos de Capital (4) | G31: Amortização/depreciação | H31: 560892641.7 | I31: 571718442.9 | J31: 548694047.8 | K31: 523114317.2 | L31: Depreciação da BAR nos 12 meses seguintes ao mês de referência da BAR, considerando tabela de vidas úteis definida na NT CRE 10/2020 | M31: No momento dos cálculos prévios houve um problema com a base de dados do primeiro PR e foi utilizada a depreciação média para o PR 2016/17, apenas para fins dos cálculos ilustrativos apresentados na NT 11
G32: Tributos sobre o lucro | H32: =H60 -> 180432342.4 | I32: =I60 -> 210697708.9 | J32: 217571973.9 | K32: 192890812.7 | L32: Cálculo circular conforme demonstrado nesta planilha
C33: 0.0794 | G33: Remuneração da base de ativos | H33: =$C$33*H72 -> 658768272.4 | I33: =$C$33*I72 -> 652446557 | J33: 637823750.3 | K33: 639699050.2 | L33: WACC que for definido nesta RTP * Valor residual da BAR em dezembro de cada ano | M33: WACC da RTP 2017 * Valor residual da BAR em dezembro de cada ano
G34: Remuneração da NCG | H34: =$C$33*1.06%*H40 -> 2716262.252 | I34: =$C$33*1%*I40 -> 2715639.269 | J34: =$C$33*1.04%*J40 -> 2848652.549 | K34: =$C$33*1.15%*K40 -> 3134468.786 | L34: Quanto o estoque de materiais de consumo representou (%) sobre a receita tarifária em cada PR * WACC * a RT calculada aqui. Ver explicação na NT CRE 10/2020
G35: Total de Custos de Capital | H35: =SUM(H31:H34) -> 1402809519 | I35: =SUM(I31:I34) -> 1437578348 | J35: 1406938425 | K35: 1358838649
C36: 0.0202 | E36: RI (5) | G36: Receitas Irrecuperáveis | H36: =$C$36*H40 -> 65192359.55 | I36: =$C$36*I40 -> 69088051.92 | J36: 69684631.73 | K36: 69342097.77 | L36: Percentual de RI que for definido nesta RTP | M36: Percentual de RI da RTP de 2017 * RT calculada aqui
E37: RR | G37: Receita Requerida = (1) + (2) + (3) + (4) + (5) | H37: =H25+H29+H30+H35+H36 -> 3324903151 | I37: =I25+I29+I30+I35+I36 -> 3499075770 | J37: 3526108211 | K37: 3518906989
B38: Para circular: | E38: OR | G38: Outras Receitas | H38: 97558618.56 | I38: 78875179.79 | J38: 76373966.92 | K38: 86129871.29 | L38: Valores da contabilidade, conforme nova classificação regulatória, com a regra de reversão que for definida nesta RTP | M38: 50% dos valores da contabilidade, conforme classificação regulatória da RTP 2017
B39: =SUM(H39:K39) -> 1.353005648e+10 | E39: RT base | G39: Receita Tarifária necessária = RR - OR | H39: =H37-H38 -> 3227344532 | I39: =I37-I38 -> 3420200590 | J39: 3449734244 | K39: 3432777117
B40: =SUM(H40:K40) -> 1.353005648e+10 | G40: Valores para cálculo circular: | H40: 3227344532 | I40: 3420200590 | J40: 3449734244 | K40: 3432777117
B41: =soma_colar_para_macro=soma_resultado_para_macro -> TRUE | E41: Contabilidade
E42: % RT
E43: Cálculo específico
D45: Todos os valores estão a preços de dez/2012.
G52: Cálculo circular dos tributos sobre o lucro:
G53: Alíquota tributos sobre o lucro | H53: 0.34 | I53: 0.34 | J53: 0.34 | K53: 0.34
C54: =soma_tributos_colar_para_macro=soma_tributos_para_macro -> TRUE | E54: =SUM(H54:K54) -> 5606164940 | G54: Custos de capital | H54: 1402809519 | I54: 1437578348 | J54: 1406938425 | K54: 1358838649
C55: =soma_tributos_colar_para_macro=soma_tributos_para_macro -> TRUE | E55: =SUM(H35:K35) -> 5606164940 | G55: Depreciação contábil | H55: 436712606.3 | I55: 410442424.3 | J55: 402461746.2 | K55: 422247759.7 | L55: Valores da contabilidade conforme nova classificação regulatória
G56: Encargos de empréstimos | H56: 268817966.4 | I56: 212896777.4 | J56: 163672005.4 | K56: 191166311.8 | L56: Valores da contabilidade conforme nova classificação regulatória
C57: =Soma_colar_JCP=Soma_JCP_para_macro -> TRUE | E57: =SUM(H57:K57) -> 603359795.2 | F57: a | G57: (-) Distribuição de 29,41% em forma de JCP | H57: 135811619.1 | I57: 158592393.2 | J57: 163766659.8 | K57: 145189123.1
C58: =Soma_colar_JCP=Soma_JCP_para_macro -> TRUE | E58: =SUM(H58:K58) -> 136761553.6 | F58: b | G58: (-) Participação nos Lucros e Resultados | H58: 30783966.99 | I58: 35947609.12 | J58: 37120442.89 | K58: 32909534.57
G59: (=) Base de cálculo de IRPJ e CSLL | H59: =H54-H55-H56-H57-H58 -> 530683360 | I59: =I54-I55-I56-I57-I58 -> 619699144 | J59: 639917570.3 | K59: =K54-K55-K56-K57-K58 -> 567325919.7
G60: (-) Tributos sobre o lucro (34% * base de cálculo acima) | H60: =IF(H59>0,H59*H53,0) -> 180432342.4 | I60: 210697708.9 | J60: 217571973.9 | K60: 192890812.7
G61: (+) JCP calculado acima | H61: =H57 -> 135811619.1 | I61: 158592393.2 | J61: 163766659.8 | K61: =K57 -> 145189123.1
G62: (=) Lucro Líquido (Base de cálculo do JCP) | H62: =H59-H60+H61 -> 486062636.7 | I62: 567593828.2 | J62: 586112256.2 | K62: =K59-K60+K61 -> 519624230.1
G63: (+) PLR | H63: =H58 -> 30783966.99 | I63: 35947609.12 | J63: 37120442.89 | K63: =K58 -> 32909534.57
G64: (=) Base de cálculo da PLR | H64: =H62+H63 -> 516846603.7 | I64: 603541437.3 | J64: 623232699.1 | K64: =K62+K63 -> 552533764.7
G66: Cálculo circular (copia os resultados abaixo e cola como valor nas linhas "a" e "b" acima)
E67: =SUM(H67:K67) -> 603359795.2 | G67: (-) Distribuição de 29,41% em forma de JCP | H67: =IF(H62>0,(25%/(1-15%))*95%*H62,0) -> 135811619.1 | I67: =IF(I62>0,(25%/(1-15%))*95%*I62,0) -> 158592393.2 | J67: 163766659.8 | K67: =IF(K62>0,(25%/(1-15%))*95%*K62,0) -> 145189123.1
E68: =SUM(H68:K68) -> 136761553.6 | G68: (-) Participação nos Lucros e Resultados | H68: =IF(H64>0,25%*25%*(H64-IF(H62>0,5%*H62,0)),0) -> 30783966.99 | I68: =IF(I64>0,25%*25%*(I64-IF(I62>0,5%*I62,0)),0) -> 35947609.12 | J68: 37120442.89 | K68: =IF(K64>0,25%*25%*(K64-IF(K62>0,5%*K62,0)),0) -> 32909534.57
H71: 2016-12-01 | I71: 2017-12-01 | J71: 2018-12-01 | K71: 2019-12-01
G72: BAR | H72: 8296829627 | I72: 8217211045 | J72: 8033044714 | K72: 8056663101
G73: Fonte: Dados da Copasa. Todos os valores estão a preço de dezembro de 2012, considerando o IPCA.

Sheet Mercado
A1: ARSAE-MG
A2: Cálculo do Fator de Produtividade - Nota Técnica CRE 11/2020
A3: Dados do mercado de cada serviço
D5: Total Água | F5: Total EDT | H5: Total EDC | L5: Atualizada por período Agosto - Julho
B6: Mês | C6: Ano | D6: Economias | E6: Volume faturado | F6: Economias | G6: Volume faturado | H6: Economias | I6: Volume faturado | L6: Total Água | N6: Total EDT | P6: Total EDC
B7: JUL | C7: 2016 | D7: 4936387 | E7: 47263205.57 | F7: 2418511 | G7: 24175857.6 | H7: 3298449 | I7: 32188327.05 | L7: Economias | M7: Vol. faturado | N7: Economias | O7: Vol. faturado | P7: Economias | Q7: Vol. faturado
B8: AGO | C8: 2016 | D8: 4945065 | E8: 47340695.64 | F8: 2425479 | G8: 23902275.25 | H8: 3305776 | I8: 31938135.51 | K8: 2016-17 | L8: =SUM(D8:D12,D14:D20) -> 59892175 | M8: 583350158.2 | N8: 29602200 | O8: 297516322.4 | P8: 40244567 | Q8: =SUM(I8:I12,I14:I20) -> 396745374.4
B9: SET | C9: 2016 | D9: 4955737 | E9: 48616619.27 | F9: 2429387 | G9: 24556062.54 | H9: 3312527 | I9: 32844789.02 | K9: 2017-18 | L9: =SUM(D21:D25,D27:D33) -> 60852188 | M9: 584698102.8 | N9: 30276782 | O9: 298193049 | P9: 41289598 | Q9: =SUM(I21:I25,I27:I33) -> 399599019
B10: OUT | C10: 2016 | D10: 4963641 | E10: 50289826.42 | F10: 2434972 | G10: 25440830.89 | H10: 3321797 | I10: 34006762.88 | K10: 2018-19 | L10: =SUM(D34:D38,D40:D46) -> 61634188 | M10: 584065299.7 | N10: 31705619 | O10: 306649540.7 | P10: 42694813 | Q10: =SUM(I34:I38,I40:I46) -> 405969533.1
B11: NOV | C11: 2016 | D11: 4972720 | E11: 49553383.86 | F11: 2440193 | G11: 25107649.75 | H11: 3329651 | I11: 33601298.55 | K11: *2019-20 | L11: =SUM(D47:D51,D53:D59) -> 62559724.67 | M11: 597119215.4 | N11: 33674559 | O11: 326106625.6 | P11: 43607831 | Q11: =SUM(I47:I51,I53:I59) -> 416496145.1
B12: DEZ | C12: 2016 | D12: 4982292 | E12: 49497346.02 | F12: 2434103 | G12: 25136200.05 | H12: 3339840 | I12: 33748874.87 | K12: * Dados 2020 constam até junho, com previsão para julho - média dos 3 meses anteriores
B13: TOTAL | C13: 2017 | D13: 29755842 | E13: 292561076.8 | F13: 14582645 | G13: 148318876.1 | H13: 19908040 | I13: 198328187.9
B14: JAN | C14: 2017 | D14: 4991845 | E14: 49671465.48 | F14: 2463309 | G14: 24900681.35 | H14: 3346843 | I14: 33404946.82
B15: FEV | C15: 2017 | D15: 4998162 | E15: 45982989.84 | F15: 2481710 | G15: 23374375.81 | H15: 3362441 | I15: 31187455.03
B16: MAR | C16: 2017 | D16: 5006335 | E16: 50839560.89 | F16: 2488834 | G16: 25954993.33 | H16: 3370379 | I16: 34571624.7
B17: ABR | C17: 2017 | D17: 5009878 | E17: 47956943.51 | F17: 2496910 | G17: 24848065.06 | H17: 3378837 | I17: 32863884.29
B18: MAI | C18: 2017 | D18: 5015488 | E18: 49960741.52 | F18: 2498265 | G18: 25679831.28 | H18: 3384538 | I18: 34112491.19
B19: JUN | C19: 2017 | D19: 5021358 | E19: 46545765.63 | F19: 2502497 | G19: 24248426.61 | H19: 3392082 | I19: 32097179.19
B20: JUL | C20: 2017 | D20: 5029654 | E20: 47094820.15 | F20: 2506541 | G20: 24366930.52 | H20: 3399856 | I20: 32367932.36
B21: AGO | C21: 2017 | D21: 5036791 | E21: 48530774.43 | F21: 2515906 | G21: 24835794.33 | H21: 3409636 | I21: 33044122.52
B22: SET | C22: 2017 | D22: 5043072 | E22: 48817302.3 | F22: 2520129 | G22: 24917553.09 | H22: 3413234 | I22: 33176343.78
B23: OUT | C23: 2017 | D23: 5030412 | E23: 50656446.25 | F23: 2510970 | G23: 25625265.89 | H23: 3400758 | I23: 34218071.3
B24: NOV | C24: 2017 | D24: 5056797 | E24: 49697201.56 | F24: 2527328 | G24: 25355440.73 | H24: 3429079 | I24: 33871233.11
B25: DEZ | C25: 2017 | D25: 5060986 | E25: 49015317.47 | F25: 2562972 | G25: 25562583.3 | H25: 3436114 | I25: 33740070.31
B26: TOTAL | C26: 2017 | D26: 60300778 | E26: 584769329 | F26: 30075371 | G26: 299669941.3 | H26: 40723797 | I26: 398655354.6
B27: JAN | C27: 2018 | D27: 5068996 | E27: 49692081.94 | F27: 2542638 | G27: 25271942.78 | H27: 3444053 | I27: 33831039.66
B28: FEV | C28: 2018 | D28: 5077861 | E28: 47353951.97 | F28: 2534577 | G28: 24037359.39 | H28: 3453751 | I28: 32285525.93
B29: MAR | C29: 2018 | D29: 5085145 | E29: 49730172.18 | F29: 2515672 | G29: 25175074.13 | H29: 3444277 | I29: 33932164.97
B30: ABR | C30: 2018 | D30: 5088880 | E30: 48435049.22 | F30: 2496067 | G30: 24507014.15 | H30: 3435852 | I30: 33072700.05
B31: MAI | C31: 2018 | D31: 5100100 | E31: 48736623.48 | F31: 2506940 | G31: 24819524.43 | H31: 3469435 | I31: 33596611.34
B32: JUN | C32: 2018 | D32: 5103684 | E32: 48006659.26 | F32: 2517224 | G32: 24603216.91 | H32: 3473952 | I32: 33155099.24
B33: JUL | C33: 2018 | D33: 5099464 | E33: 46026522.79 | F33: 2526359 | G33: 23482279.84 | H33: 3479457 | I33: 31676036.81
B34: AGO | C34: 2018 | D34: 5106956 | E34: 46821822.34 | F34: 2531745 | G34: 23841440.15 | H34: 3486822 | I34: 32174753.16
B35: SET | C35: 2018 | D35: 5108681 | E35: 47003294.51 | F35: 2537663 | G35: 23904099.94 | H35: 3491717 | I35: 32242969.3
B36: OUT | C36: 2018 | D36: 5112005 | E36: 49613564.04 | F36: 2540401 | G36: 25066294.39 | H36: 3497801 | I36: 33918973.23
B37: NOV | C37: 2018 | D37: 5114899 | E37: 48733753.88 | F37: 2537983 | G37: 24820815.03 | H37: 3564273 | I37: 34064922.93
B38: DEZ | C38: 2018 | D38: 5127404 | E38: 47956396.3 | F38: 2583967 | G38: 24839456.75 | H38: 3564827 | I38: 33654067.75
B39: TOTAL | C39: 2018 | D39: 61194075 | E39: 578109891.9 | F39: 30371236 | G39: 294368517.9 | H39: 41806217 | I39: 397604864.4
B40: JAN | C40: 2019 | D40: 5135812 | E40: 51469188.01 | F40: 2694938 | G40: 27061361.78 | H40: 3571235 | I40: 35580523.96
B41: FEV | C41: 2019 | D41: 5139943 | E41: 48683355.41 | F41: 2702073 | G41: 25700322.93 | H41: 3574255 | I41: 33640026.61
B42: MAR | C42: 2019 | D42: 5146265 | E42: 50250726.3 | F42: 2707666 | G42: 26847411.73 | H42: 3579452 | I42: 35014145.75
B43: ABR | C43: 2019 | D43: 5151297 | E43: 47611385.72 | F43: 2711868 | G43: 25766122.04 | H43: 3585530 | I43: 33467868.72
B44: MAI | C44: 2019 | D44: 5158013 | E44: 50218874.71 | F44: 2712916 | G44: 26994308.46 | H44: 3589053 | I44: 35131689.76
B45: JUN | C45: 2019 | D45: 5159385 | E45: 47111391.29 | F45: 2716599 | G45: 25563355.08 | H45: 3589178 | I45: 33103457.65
B46: JUL | C46: 2019 | D46: 5173528 | E46: 48591547.19 | F46: 2727800 | G46: 26244552.39 | H46: 3600670 | I46: 33976134.24
B47: AGO | C47: 2019 | D47: 5180582 | E47: 49336715.86 | F47: 2735023 | G47: 26419125.83 | H47: 3609227 | I47: 34262681.78
B48: SET | C48: 2019 | D48: 5184487 | E48: 50668533.5 | F48: 2752195 | G48: 27340240.73 | H48: 3614883 | I48: 35259782.03
B49: OUT | C49: 2019 | D49: 5192080 | E49: 52893920.71 | F49: 2766031 | G49: 28483382.38 | H49: 3620179 | I49: 36680845.77
B50: NOV | C50: 2019 | D50: 5197540 | E50: 50781731.67 | F50: 2752721 | G50: 27449060.95 | H50: 3623796 | I50: 35484954.3
B51: DEZ | C51: 2019 | D51: 5204910 | E51: 49604211.01 | F51: 2796839 | G51: 27321437.98 | H51: 3626785 | I51: 34775884.36
B52: TOTAL | C52: 2019 | D52: 62023842 | E52: 597221581.4 | F52: 32776669 | G52: 321190682.3 | H52: 43184243 | I52: 416377994.9
B53: JAN | C53: 2020 | D53: 5211457 | E53: 51683783.04 | F53: 2808418 | G53: 28008496.11 | H53: 3629521 | I53: 35808429.64
B54: FEV | C54: 2020 | D54: 5215957 | E54: 45957697.01 | F54: 2815391 | G54: 25277360.73 | H54: 3634567 | I54: 32160676.16
B55: MAR | C55: 2020 | D55: 5221861 | E55: 50351533.79 | F55: 2834781 | G55: 27888421.22 | H55: 3640437 | I55: 35306538.15
B56: ABR | C56: 2020 | D56: 5224341 | E56: 47077725.97 | F56: 2844520 | G56: 26088543.63 | H56: 3644015 | I56: 33016426.96
B57: MAI | C57: 2020 | D57: 5236063 | E57: 49820457.6 | F57: 2854695 | G57: 27386105.81 | H57: 3652394 | I57: 34747532.28
B58: JUN | C58: 2020 | D58: 5252734 | E58: 49982633.04 | F58: 2860655 | G58: 27464675.34 | H58: 3659918 | I58: 34803305.45
B59: JUL | C59: 2020 | D59: =AVERAGE(D56:D58) -> 5237712.667 | E59: =AVERAGE(E56:E58) -> 48960272.2 | F59: 2853290 | G59: =AVERAGE(G56:G58) -> 26979774.93 | H59: =AVERAGE(H56:H58) -> 3652109 | I59: =AVERAGE(I56:I58) -> 34189088.23
B60: AGO | C60: 2020
B61: SET | C61: 2020
B62: OUT | C62: 2020
B63: NOV | C63: 2020
B64: DEZ | C64: 2020
B65: TOTAL | C65: 2020 | D65: 36600125.67 | E65: 343834102.7 | F65: 19871750 | G65: 189093377.8 | H65: 25512961 | I65: 240031996.9
